bitfinex-derivatives/quotes_BTCF0:USTF0_20251125
["timestamp","ask_amount","ask_price","bid_price","bid_amount"]
[1764068809224,0.912019,87411.0,87410.0,0.11574]
[1764068809529,0.502,87411.0,87410.0,0.11574]
[1764068812218,0.882,87411.0,87410.0,0.11574]
[1764068812719,0.881,87411.0,87410.0,0.11574]
[1764068812925,0.882,87411.0,87410.0,0.11574]
[1764068813321,0.881,87411.0,87410.0,0.11574]
[1764068813625,0.882,87411.0,87410.0,0.11574]
[1764068816030,0.881,87411.0,87410.0,0.11574]
[1764068816323,0.882,87411.0,87410.0,0.11574]
[1764068818929,0.881,87411.0,87410.0,0.11574]
[1764068819229,0.882,87411.0,87410.0,0.11574]
[1764068819621,0.881,87411.0,87410.0,0.11574]
[1764068819818,0.882,87411.0,87410.0,0.11574]
[1764068820425,0.881,87411.0,87410.0,0.11574]
[1764068820626,0.882,87411.0,87410.0,0.11574]
[1764068822624,0.881,87411.0,87410.0,0.11574]
[1764068822832,0.882,87411.0,87410.0,0.11574]
[1764068823219,0.881,87411.0,87410.0,0.11574]
[1764068823429,0.882,87411.0,87410.0,0.11574]
[1764068826537,0.881,87411.0,87410.0,0.11574]
[1764068826736,0.882,87411.0,87410.0,0.11574]
[1764068827932,0.881,87411.0,87410.0,0.11574]
[1764068828136,0.882,87411.0,87410.0,0.11574]
[1764068828733,0.881,87411.0,87410.0,0.11574]
[1764068828935,0.882,87411.0,87410.0,0.11574]
[1764068829335,0.881,87411.0,87410.0,0.11574]
[1764068829734,0.882,87411.0,87410.0,0.11574]
[1764068831031,0.522,87411.0,87410.0,0.11574]
[1764068831436,0.502,87411.0,87410.0,0.11574]
[1764068831635,0.501,87411.0,87410.0,0.11574]
[1764068831943,0.702,87411.0,87410.0,0.11574]
[1764068832337,0.53988011,87411.0,87410.0,0.11574]
[1764068832734,0.33988011,87411.0,87410.0,0.11574]
[1764068833842,0.33888011,87411.0,87410.0,0.11574]
[1764068834043,0.33988011,87411.0,87410.0,0.11574]
[1764068834431,0.33888011,87411.0,87410.0,0.11574]
[1764068835337,0.33988011,87411.0,87410.0,0.11574]
[1764068835647,0.002,87411.0,87410.0,0.14637431]
[1764068835852,0.00017162,87415.0,87414.0,0.0834]
[1764068836146,0.00017162,87415.0,87414.0,0.0948437]
[1764068838439,0.08232834,87455.0,87444.0,0.1188897]
[1764068838744,0.03914,87455.0,87454.0,0.0834]
[1764068839050,0.45914,87455.0,87454.0,0.0834]
[1764068840047,0.46014,87455.0,87454.0,0.0834]
[1764068840439,0.15014,87455.0,87454.0,0.0834]
[1764068840643,0.15114,87455.0,87454.0,0.0834]
[1764068841149,0.15014,87455.0,87454.0,0.0834]
[1764068841335,0.15214,87455.0,87454.0,0.0834]
[1764068843549,0.40214,87455.0,87454.0,0.0834]
[1764068844945,0.40114,87455.0,87454.0,0.0834]
[1764068845352,0.40014,87455.0,87454.0,0.0948384]
[1764068845556,0.04114,87455.0,87454.0,0.0948384]
[1764068845751,0.04114,87455.0,87454.0,0.0834]
[1764068845946,0.04114,87455.0,87454.0,0.0948384]
[1764068847054,0.04014,87455.0,87454.0,0.0948384]
[1764068847247,0.04114,87455.0,87454.0,0.0948384]
[1764068850648,0.46114,87455.0,87454.0,0.0948384]
[1764068852255,0.46114,87455.0,87454.0,0.0834]
[1764068857351,0.10114,87455.0,87454.0,0.0834]
[1764068857655,0.04114,87455.0,87454.0,0.0834]
[1764068866061,0.002,87455.0,87454.0,0.0834]
[1764068867465,0.07114,87455.0,87454.0,0.0834]
[1764068868959,0.002,87455.0,87454.0,0.0834]
[1764068869566,0.03114,87455.0,87454.0,0.0834]
[1764068870064,0.002,87455.0,87454.0,0.0834]
[1764068877569,0.03114,87455.0,87454.0,0.0834]
[1764068877868,0.002,87455.0,87454.0,0.0834]
[1764068878777,0.0439,87463.0,87462.0,0.08514]
[1764068879074,0.4353372,87463.0,87462.0,0.08514]
[1764068879461,0.54968237,87463.0,87462.0,0.08514]
[1764068880678,0.15824517,87463.0,87462.0,0.08514]
[1764068880876,0.16024517,87463.0,87462.0,0.08514]
[1764068881368,0.58924517,87463.0,87462.0,0.08514]
[1764068881872,0.002,87463.0,87462.0,0.08514]
[1764068882567,0.0001715,87471.0,87470.0,0.0965763]
[1764068887868,0.02195,87493.0,87492.0,0.02616]
[1764068888179,0.0553349,87481.0,87480.0,0.1113]
[1764068888376,0.4953349,87481.0,87480.0,0.1113]
[1764068890679,0.4953349,87481.0,87472.0,0.0263315]
[1764068890680,0.0553359,87473.0,87472.0,0.1114715]
[1764068890880,0.4653359,87473.0,87472.0,0.1114715]
[1764068891971,0.4663359,87473.0,87472.0,0.1114715]
[1764068892376,0.4673359,87473.0,87472.0,0.1114715]
[1764068893285,0.4559,87473.0,87472.0,0.1114715]
[1764068893480,0.3959,87473.0,87472.0,0.1114715]
[1764068893677,0.072,87473.0,87472.0,0.1114715]
[1764068893884,0.001,87473.0,87472.0,0.1114715]
[1764068894083,0.002,87473.0,87472.0,0.1114715]
[1764068894282,0.09672397,87482.0,87481.0,0.0939049]
[1764068894482,0.0351215,87489.0,87488.0,0.093904]
[1764068895087,0.0700715,87489.0,87488.0,0.093904]
[1764068896987,0.0710715,87489.0,87488.0,0.093904]
[1764068897186,0.0720715,87489.0,87488.0,0.093904]
[1764068898479,0.3820715,87489.0,87488.0,0.093904]
[1764068899981,0.3820715,87489.0,87488.0,0.08247]
[1764068904283,0.3820715,87489.0,87488.0,0.11007]
[1764068911295,0.1420715,87489.0,87488.0,0.11007]
[1764068912799,0.0021715,87489.0,87488.0,0.11007]
[1764068913388,0.0371215,87489.0,87488.0,0.11007]
[1764068913587,0.0021715,87489.0,87488.0,0.11007]
[1764068913796,0.0371215,87489.0,87488.0,0.11007]
[1764068915200,0.0720715,87489.0,87488.0,0.11007]
[1764068916902,0.5220715,87489.0,87488.0,0.11007]
[1764068917601,0.0720715,87489.0,87488.0,0.11007]
[1764068917801,0.1520715,87489.0,87488.0,0.11007]
[1764068919409,0.0720715,87489.0,87488.0,0.11007]
[1764068921610,0.0021715,87489.0,87488.0,0.11007]
[1764068924713,0.09672397,87500.0,87499.0,0.0114325]
[1764068924912,0.0585716,87507.0,87506.0,0.1033016]
[1764068925107,0.1685716,87507.0,87506.0,0.09187]
[1764068925307,0.18418447,87507.0,87506.0,0.09187]
[1764068925616,0.55847083,87507.0,87506.0,0.09187]
[1764068925816,1.05847083,87507.0,87506.0,0.09187]
[1764068926815,1.05847083,87507.0,87506.0,0.09687]
[1764068927010,1.05847083,87507.0,87506.0,0.07083749]
[1764068927212,1.04703923,87507.0,87506.0,0.07583749]
[1764068938131,1.04703923,87507.0,87506.0,0.01]
[1764068939034,1.04703923,87507.0,87506.0,0.04995]
[1764068940232,1.04703923,87507.0,87506.0,0.09022]
[1764068940935,1.04703923,87507.0,87506.0,0.01]
[1764068956154,1.04703923,87507.0,87506.0,0.04804]
[1764068957549,0.99989923,87507.0,87506.0,0.08743]
[1764068957753,0.5,87507.0,87506.0,0.0988616]
[1764068957952,0.43987,87507.0,87506.0,0.0988616]
[1764068958146,0.51852,87507.0,87506.0,0.08743]
[1764068958349,0.07865,87507.0,87506.0,0.08743]
[1764068958658,0.14865,87507.0,87506.0,0.08743]
[1764068959247,0.14865,87507.0,87506.0,0.11806763]
[1764068959445,0.07865,87507.0,87506.0,0.11806763]
[1764068959848,0.04014,87507.0,87506.0,0.08743]
[1764068960056,0.0788215,87515.0,87514.0,0.07743]
[1764068960251,0.4688215,87515.0,87514.0,0.0888606]
[1764068960758,0.4688215,87515.0,87514.0,0.07743]
[1764068961357,0.4688215,87515.0,87514.0,0.08143]
[1764068962564,0.2188215,87515.0,87514.0,0.0978606]
[1764068962753,0.4388215,87515.0,87514.0,0.0978606]
[1764068963759,0.1888215,87515.0,87514.0,0.0978606]
[1764068964263,0.4688215,87515.0,87514.0,0.0978606]
[1764068964562,0.4688215,87515.0,87514.0,0.08643]
[1764068967863,0.1588215,87515.0,87514.0,0.08643]
[1764068969067,0.4588215,87515.0,87514.0,0.08643]
[1764068972367,0.28131878,87515.0,87514.0,0.08643]
[1764068972569,0.32423878,87515.0,87514.0,0.08643]
[1764068974566,0.04292,87515.0,87514.0,0.08643]
[1764068974771,0.07292,87515.0,87514.0,0.08643]
[1764068975574,0.38292,87515.0,87514.0,0.08643]
[1764068978767,0.07292,87515.0,87514.0,0.08643]
[1764068979382,0.02146,87515.0,87514.0,0.08643]
[1764068980271,0.04292,87515.0,87514.0,0.08643]
[1764068981060,0.44292,87515.0,87514.0,0.08643]
[1764068985374,0.44292,87515.0,87514.0,0.009]
[1764068985861,0.44292,87515.0,87514.0,0.04907]
[1764068986671,0.44292,87515.0,87514.0,0.08532]
[1764068991880,0.21292,87515.0,87514.0,0.08532]
[1764068994876,0.43292,87515.0,87514.0,0.08532]
[1764069006084,0.43292,87515.0,87514.0,0.0967506]
[1764069006490,0.43292,87515.0,87514.0,0.08532]
[1764069009095,0.05292,87515.0,87514.0,0.08532]
[1764069009687,0.31292,87515.0,87514.0,0.08532]
[1764069009888,0.08292,87515.0,87514.0,0.08532]
[1764069011190,0.04292,87515.0,87514.0,0.08532]
[1764069011392,0.49292,87515.0,87514.0,0.08532]
[1764069016505,0.25292,87515.0,87514.0,0.08532]
[1764069018193,0.47292,87515.0,87514.0,0.08532]
[1764069024514,0.18292,87515.0,87514.0,0.08532]
[1764069024712,0.37292,87515.0,87514.0,0.08532]
[1764069030519,0.37292,87515.0,87514.0,0.009]
[1764069030720,0.02488,87502.0,87501.0,0.03066273]
[1764069030921,0.02488,87502.0,87499.0,0.07672]
[1764069030922,0.02488,87500.0,87499.0,0.07672]
[1764069031215,0.40488,87500.0,87499.0,0.07672]
[1764069033324,0.40488,87500.0,87499.0,0.07872]
[1764069034024,0.40488,87500.0,87499.0,0.07972]
[1764069035321,0.40488,87500.0,87499.0,0.003]
[1764069035524,0.51916636,87500.0,87499.0,0.003]
[1764069035714,0.0299725,87499.0,87498.0,1.5e-06]
[1764069035914,0.0299741,87487.0,87486.0,0.10012]
[1764069036222,0.4299741,87487.0,87486.0,0.10012]
[1764069037518,0.4309741,87487.0,87486.0,0.10012]
[1764069037824,0.4319741,87487.0,87486.0,0.10012]
[1764069038122,0.0299745,87484.0,87483.0,0.10012]
[1764069038420,0.4499745,87484.0,87483.0,0.07672]
[1764069039714,0.4509745,87484.0,87483.0,0.07672]
[1764069040019,0.29694277,87484.0,87483.0,0.07672]
[1764069040323,0.29794277,87484.0,87483.0,0.07672]
[1764069043212,0.29794277,87484.0,87480.0,0.0234]
[1764069043213,0.0114349,87481.0,87480.0,0.06212]
[1764069043423,0.4514349,87481.0,87480.0,0.09988]
[1764069044426,0.4534349,87481.0,87480.0,0.09988]
[1764069046223,0.1834349,87481.0,87480.0,0.09988]
[1764069046424,0.172,87481.0,87480.0,0.111315]
[1764069046728,0.432,87481.0,87480.0,0.09988]
[1764069058637,0.432,87481.0,87480.0,0.111315]
[1764069058939,0.162,87481.0,87480.0,0.09988]
[1764069060242,0.432,87481.0,87480.0,0.09988]
[1764069061833,0.432,87481.0,87480.0,0.0234]
[1764069062144,0.011435,87480.0,87478.0,0.0001714]
[1764069062338,0.0114369,87466.0,87465.0,0.13160035]
[1764069062532,0.4214369,87466.0,87465.0,0.13160035]
[1764069063334,0.4366719,87466.0,87465.0,0.13160035]
[1764069063543,0.016235,87466.0,87465.0,0.13160035]
[1764069064033,0.0276719,87466.0,87465.0,0.13160035]
[1764069064234,0.0276719,87466.0,87465.0,0.101]
[1764069064843,0.4376719,87466.0,87465.0,0.101]
[1764069065141,0.4376719,87466.0,87465.0,0.13168903]
[1764069065333,0.4386719,87466.0,87465.0,0.101]
[1764069068045,0.4376719,87466.0,87465.0,0.101]
[1764069068342,0.4386719,87466.0,87465.0,0.101]
[1764069068646,0.017235,87466.0,87465.0,0.101]
[1764069068943,0.012,87466.0,87465.0,0.101]
[1764069069144,0.011,87466.0,87465.0,0.101]
[1764069069337,0.012,87466.0,87465.0,0.101]
[1764069069730,0.33719295,87466.0,87465.0,0.101]
[1764069071136,0.33619295,87466.0,87465.0,0.101]
[1764069071344,0.04719295,87466.0,87465.0,0.101]
[1764069071545,0.002,87466.0,87465.0,0.101]
[1764069071747,0.001,87466.0,87465.0,0.101]
[1764069071947,0.011436,87473.0,87472.0,0.07614]
[1764069072146,0.4264035,87473.0,87472.0,0.07614]
[1764069074247,0.4294035,87473.0,87472.0,0.07614]
[1764069076445,0.4284035,87473.0,87472.0,0.07614]
[1764069076636,0.4294035,87473.0,87472.0,0.07614]
[1764069078241,0.4284035,87473.0,87472.0,0.07614]
[1764069078445,0.4294035,87473.0,87472.0,0.07614]
[1764069080547,0.2094035,87473.0,87472.0,0.07614]
[1764069080747,0.0294035,87473.0,87472.0,0.07614]
[1764069080948,0.2194035,87473.0,87472.0,0.07614]
[1764069081446,0.1794035,87473.0,87472.0,0.07614]
[1764069081640,0.1884035,87473.0,87472.0,0.07614]
[1764069081848,0.1894035,87473.0,87472.0,0.07614]
[1764069082047,0.1769675,87473.0,87472.0,0.07614]
[1764069082241,0.002,87473.0,87472.0,0.07614]
[1764069082934,0.0967497,87490.0,87473.0,0.07706]
[1764069083141,0.0114317,87506.0,87505.0,0.07706]
[1764069083340,0.23,87506.0,87505.0,0.07706]
[1764069083947,0.5,87506.0,87505.0,0.07706]
[1764069085138,0.5,87506.0,87505.0,0.08206]
[1764069085336,0.0114314,87508.0,87507.0,0.07706]
[1764069085542,0.08,87508.0,87507.0,0.07706]
[1764069086747,0.01443088,87509.0,87508.0,0.07706]
[1764069086943,0.29,87509.0,87508.0,0.07706]
[1764069087144,0.0001714,87514.0,87513.0,0.07706]
[1764069087352,0.06478356,87514.0,87513.0,0.07706]
[1764069087543,0.0501714,87514.0,87513.0,0.07706]
[1764069087744,0.3801714,87514.0,87513.0,0.07706]
[1764069088444,0.3801714,87514.0,87513.0,0.07906]
[1764069089050,0.3801714,87514.0,87513.0,0.08306]
[1764069089951,0.39476163,87514.0,87513.0,0.08306]
[1764069090546,0.50902971,87514.0,87513.0,0.006]
[1764069093450,0.52046031,87514.0,87513.0,0.006]
[1764069094354,1.02046031,87514.0,87513.0,0.006]
[1764069098660,1.02046031,87514.0,87513.0,0.04591]
[1764069100562,1.02046031,87514.0,87513.0,0.08306]
[1764069102661,0.62619223,87514.0,87513.0,0.08306]
[1764069103282,0.61476163,87514.0,87513.0,0.08306]
[1764069106280,0.11476163,87514.0,87513.0,0.08306]
[1764069107988,0.01476163,87514.0,87513.0,0.08306]
[1764069111382,0.0967497,87530.0,87518.0,0.01143]
[1764069111586,0.5467497,87530.0,87529.0,0.07315]
[1764069111789,0.45,87530.0,87529.0,0.07315]
[1764069112083,0.95,87530.0,87529.0,0.07315]
[1764069112479,0.96431837,87530.0,87529.0,0.07315]
[1764069112882,0.51431837,87530.0,87529.0,0.07315]
[1764069113379,0.5,87530.0,87529.0,0.07315]
[1764069114290,0.44773,87530.0,87529.0,0.47315]
[1764069114586,0.01506171,87538.0,87537.0,0.0845776]
[1764069114789,0.03527037,87538.0,87537.0,0.0845776]
[1764069114989,0.07289037,87538.0,87537.0,0.07315]
[1764069115888,0.07289037,87538.0,87537.0,0.07815]
[1764069117481,0.07289037,87538.0,87537.0,0.07915]
[1764069117889,0.07289037,87538.0,87537.0,0.08215]
[1764069118884,0.00017037,87538.0,87537.0,0.08215]
[1764069120884,0.45138037,87538.0,87537.0,0.08215]
[1764069121184,0.44138037,87538.0,87537.0,0.08215]
[1764069123988,0.07138037,87538.0,87537.0,0.08215]
[1764069124184,0.15138037,87538.0,87537.0,0.08215]
[1764069125981,0.46138037,87538.0,87537.0,0.08215]
[1764069126294,0.46138037,87538.0,87537.0,0.08236]
[1764069126497,0.07138037,87538.0,87537.0,0.08236]
[1764069127685,0.03475037,87538.0,87537.0,0.08236]
[1764069127886,0.00017037,87538.0,87537.0,0.08236]
[1764069128093,0.03475037,87538.0,87537.0,0.08236]
[1764069128290,0.07138037,87538.0,87537.0,0.08236]
[1764069132599,0.44138037,87538.0,87537.0,0.08236]
[1764069132803,0.44138037,87538.0,87537.0,0.07836]
[1764069132995,0.44138037,87538.0,87537.0,0.0466]
[1764069133298,0.44138037,87538.0,87537.0,0.08193]
[1764069133899,0.44138037,87538.0,87537.0,0.009]
[1764069136200,0.44138037,87538.0,87537.0,0.04313]
[1764069136400,0.44138037,87538.0,87537.0,0.009]
[1764069137303,0.44138037,87538.0,87537.0,0.04313]
[1764069138001,0.44138037,87538.0,87537.0,0.07846]
[1764069138195,0.44138037,87538.0,87537.0,0.04313]
[1764069138393,0.44138037,87538.0,87537.0,0.009]
[1764069138999,0.44138037,87538.0,87537.0,0.04313]
[1764069140799,0.44138037,87538.0,87537.0,0.07846]
[1764069146306,0.25420613,87538.0,87537.0,0.07846]
[1764069148509,0.022,87538.0,87537.0,0.07846]
[1764069148698,0.03691865,87546.0,87545.0,0.06946]
[1764069148902,0.08691865,87546.0,87545.0,0.06946]
[1764069149301,0.2011554,87546.0,87545.0,0.06946]
[1764069149508,0.5411554,87546.0,87545.0,0.06946]
[1764069149907,0.5411554,87546.0,87545.0,0.07346]
[1764069150505,0.1511554,87546.0,87545.0,0.07346]
[1764069150710,0.2911554,87546.0,87545.0,0.07346]
[1764069151210,0.2911554,87546.0,87545.0,0.07646]
[1764069152311,0.2911554,87546.0,87545.0,0.07746]
[1764069156811,0.2801554,87546.0,87545.0,0.07746]
[1764069157212,0.2911554,87546.0,87545.0,0.07746]
[1764069158317,0.5211554,87546.0,87545.0,0.07746]
[1764069159314,0.5211554,87546.0,87545.0,0.04213]
[1764069159820,0.5211554,87546.0,87545.0,0.008]
[1764069160218,0.5211554,87546.0,87545.0,0.04213]
[1764069160516,0.5211554,87546.0,87545.0,0.07746]
[1764069164718,0.5211554,87546.0,87545.0,0.0737]
[1764069169928,0.4721554,87546.0,87545.0,0.0697]
[1764069170128,0.4330854,87546.0,87545.0,0.0697]
[1764069170327,0.44727813,87546.0,87545.0,0.0697]
[1764069170717,0.44727813,87546.0,87545.0,0.03813]
[1764069170921,0.02186,87541.0,87540.0,0.0855]
[1764069171230,0.41186,87541.0,87540.0,0.0855]
[1764069171728,0.41186,87541.0,87540.0,0.03435]
[1764069172221,0.41186,87541.0,87540.0,0.06592]
[1764069172529,0.52609284,87541.0,87540.0,0.06592]
[1764069172926,0.29609284,87541.0,87540.0,0.087]
[1764069174532,0.50709284,87541.0,87540.0,0.087]
[1764069175131,0.13709284,87541.0,87540.0,0.087]
[1764069175333,0.18709284,87541.0,87540.0,0.087]
[1764069175632,0.07286,87541.0,87540.0,0.087]
[1764069176423,0.02286,87541.0,87540.0,0.087]
[1764069177933,0.01193,87541.0,87540.0,0.087]
[1764069178130,0.02711,87541.0,87540.0,0.087]
[1764069180135,0.08711,87541.0,87540.0,0.087]
[1764069180534,0.02711,87541.0,87540.0,0.087]
[1764069180738,0.30711,87541.0,87540.0,0.087]
[1764069181426,0.02711,87541.0,87540.0,0.087]
[1764069181626,0.06711,87541.0,87540.0,0.087]
[1764069181823,0.02711,87541.0,87540.0,0.087]
[1764069182543,0.39711,87541.0,87525.0,0.03067751]
[1764069182733,0.03036,87525.0,87524.0,0.09752]
[1764069182931,0.40036,87525.0,87524.0,0.09752]
[1764069183131,0.03036,87522.0,87521.0,0.0750614]
[1764069183629,0.40036,87522.0,87521.0,0.0750614]
[1764069184835,0.11223602,87537.0,87536.0,0.09752]
[1764069185032,0.45036,87537.0,87536.0,0.09752]
[1764069185431,0.56461763,87537.0,87536.0,0.09752]
[1764069185633,0.56461763,87537.0,87536.0,0.07489]
[1764069186340,0.56561763,87537.0,87536.0,0.07489]
[1764069188041,0.56561763,87537.0,87536.0,0.03693]
[1764069188934,0.56461763,87537.0,87536.0,0.03693]
[1764069189136,0.56561763,87537.0,87536.0,0.03693]
[1764069190442,0.56561763,87537.0,87536.0,0.07489]
[1764069194145,0.01942,87533.0,87532.0,0.09764]
[1764069194334,0.43942,87533.0,87532.0,0.09764]
[1764069194847,0.55365806,87533.0,87532.0,0.09764]
[1764069195346,0.55465806,87533.0,87532.0,0.09764]
[1764069197044,0.01942,87529.0,87528.0,0.09764]
[1764069197246,0.42942,87529.0,87528.0,0.09764]
[1764069198145,0.43042,87529.0,87528.0,0.09764]
[1764069198348,0.02042,87529.0,87528.0,0.09764]
[1764069198538,0.44042,87529.0,87528.0,0.09764]
[1764069198742,0.08042,87529.0,87528.0,0.09764]
[1764069198946,0.061,87529.0,87528.0,0.09764]
[1764069199546,0.06769,87529.0,87528.0,0.09764]
[1764069199754,0.27438,87529.0,87528.0,0.09764]
[1764069200548,0.27338,87529.0,87528.0,0.09764]
[1764069200852,0.27438,87529.0,87528.0,0.09764]
[1764069201656,0.27338,87529.0,87528.0,0.09764]
[1764069201953,0.27438,87529.0,87528.0,0.09764]
[1764069204056,0.03438,87529.0,87528.0,0.09764]
[1764069204546,0.29438,87529.0,87528.0,0.09764]
[1764069207352,0.01438,87529.0,87528.0,0.09764]
[1764069207547,0.29438,87529.0,87528.0,0.09764]
[1764069211659,0.29338,87529.0,87528.0,0.09764]
[1764069211859,0.29438,87529.0,87528.0,0.09764]
[1764069213161,0.29338,87529.0,87528.0,0.09764]
[1764069213356,0.29438,87529.0,87528.0,0.09764]
[1764069213753,0.01338,87525.0,87524.0,0.03405]
[1764069213963,0.01338,87522.0,87521.0,0.0696014]
[1764069214159,0.45338,87522.0,87521.0,0.0696014]
[1764069216063,0.23338,87522.0,87521.0,0.0696014]
[1764069216553,0.23438,87522.0,87521.0,0.0696014]
[1764069216950,0.001,87522.0,87521.0,0.0696014]
[1764069217564,0.10998828,87540.0,87539.0,0.06943]
[1764069217756,0.40338,87540.0,87539.0,0.06943]
[1764069218151,0.51761414,87540.0,87539.0,0.06943]
[1764069218553,0.89761414,87540.0,87539.0,0.06943]
[1764069219957,0.39761414,87540.0,87539.0,0.06943]
[1764069220563,0.39861414,87540.0,87539.0,0.06943]
[1764069229972,0.05438,87540.0,87539.0,0.06943]
[1764069233564,0.01438,87540.0,87539.0,0.06943]
[1764069238187,0.001,87540.0,87539.0,0.06943]
[1764069244382,0.441,87540.0,87539.0,0.06943]
[1764069248573,0.55523414,87540.0,87536.0,0.05179]
[1764069248878,0.55523414,87540.0,87534.0,0.0808]
[1764069250383,0.55523414,87540.0,87537.0,0.0731875]
[1764069250977,0.55423414,87540.0,87537.0,0.06176]
[1764069251276,0.55523414,87540.0,87537.0,0.06176]
[1764069254393,0.55523414,87540.0,87534.0,0.04977]
[1764069254593,0.55523414,87540.0,87534.0,0.08045]
[1764069255384,0.55523414,87540.0,87535.0,0.0728378]
[1764069255692,0.55523414,87540.0,87539.0,0.0728373]
[1764069256882,0.55523414,87540.0,87539.0,0.06141]
[1764069257283,0.55423414,87540.0,87539.0,0.06141]
[1764069257481,0.55523414,87540.0,87539.0,0.06141]
[1764069259786,0.55423414,87540.0,87539.0,0.06141]
[1764069259985,0.55523414,87540.0,87539.0,0.06141]
[1764069260594,0.55423414,87540.0,87539.0,0.06141]
[1764069260894,0.55523414,87540.0,87539.0,0.06141]
[1764069264998,0.11523414,87540.0,87539.0,0.06141]
[1764069265197,0.25523414,87540.0,87539.0,0.06141]
[1764069265600,0.141,87540.0,87539.0,0.06141]
[1764069266901,0.14,87540.0,87539.0,0.06141]
[1764069267091,0.141,87540.0,87539.0,0.06141]
[1764069267989,0.001,87540.0,87539.0,0.06141]
[1764069268187,0.401,87540.0,87539.0,0.06141]
[1764069269203,0.4,87540.0,87539.0,0.06141]
[1764069269501,0.401,87540.0,87539.0,0.06141]
[1764069270000,0.4,87540.0,87539.0,0.06141]
[1764069270199,0.401,87540.0,87539.0,0.06141]
[1764069272704,0.4,87540.0,87539.0,0.06141]
[1764069273000,0.401,87540.0,87539.0,0.06141]
[1764069276502,0.4,87540.0,87539.0,0.06141]
[1764069276801,0.401,87540.0,87539.0,0.06141]
[1764069282107,0.4,87540.0,87539.0,0.06141]
[1764069282310,0.401,87540.0,87539.0,0.06141]
[1764069285410,0.51523414,87540.0,87539.0,0.06141]
[1764069285614,0.51523414,87540.0,87534.0,0.07637]
[1764069285814,0.51523414,87540.0,87535.0,0.0687578]
[1764069286515,0.51523414,87540.0,87535.0,0.05733]
[1764069286916,0.51523414,87540.0,87537.0,0.01871]
[1764069287819,0.51423414,87540.0,87537.0,0.07604]
[1764069288011,0.51523414,87540.0,87537.0,0.07604]
[1764069288616,0.51523414,87540.0,87537.0,0.01871]
[1764069288821,0.51523414,87540.0,87534.0,0.07637]
[1764069292217,0.51523414,87540.0,87535.0,0.05733]
[1764069292416,0.51523414,87540.0,87537.0,0.01871]
[1764069292615,0.51523414,87540.0,87537.0,0.07604]
[1764069298332,0.51423414,87540.0,87537.0,0.07604]
[1764069298533,0.51523414,87540.0,87537.0,0.07604]
[1764069300740,0.51523414,87540.0,87538.0,0.0632874]
[1764069302235,0.51423414,87540.0,87538.0,0.0632874]
[1764069302440,0.51523414,87540.0,87538.0,0.0632874]
[1764069304642,0.51523414,87540.0,87539.0,0.05186]
[1764069307147,0.51423414,87540.0,87539.0,0.05186]
[1764069307435,0.51523414,87540.0,87539.0,0.05186]
[1764069307943,0.51423414,87540.0,87539.0,0.05186]
[1764069308239,0.51523414,87540.0,87539.0,0.05186]
[1764069310942,0.51523414,87540.0,87528.0,0.02157]
[1764069311250,0.09660021,87538.0,87528.0,0.02157]
[1764069311547,0.59320042,87538.0,87528.0,0.02157]
[1764069311846,0.5,87533.0,87528.0,0.02157]
[1764069312045,0.93,87533.0,87528.0,0.02157]
[1764069312440,0.11424589,87532.0,87522.0,0.06622]
[1764069312640,0.66089713,87532.0,87522.0,0.06622]
[1764069312840,0.66089713,87532.0,87528.0,0.001]
[1764069313148,0.56424589,87532.0,87528.0,0.001]
[1764069313442,0.56424589,87532.0,87522.0,0.06622]
[1764069313646,0.56624589,87532.0,87522.0,0.06622]
[1764069313836,0.66289713,87532.0,87522.0,0.04031]
[1764069314241,0.66089713,87532.0,87522.0,0.04031]
[1764069314545,0.5,87530.0,87522.0,0.04031]
[1764069314746,0.18,87529.0,87522.0,0.04031]
[1764069314949,0.6,87529.0,87522.0,0.06622]
[1764069315137,0.11425045,87528.0,87522.0,0.06622]
[1764069315339,0.53425045,87528.0,87522.0,0.06622]
[1764069315739,0.53425045,87528.0,87522.0,0.01458]
[1764069316247,0.5,87525.0,87522.0,0.04031]
[1764069316451,0.95,87525.0,87522.0,0.04031]
[1764069316850,0.11425307,87524.0,87522.0,0.01458]
[1764069317047,0.51425307,87524.0,87522.0,0.01458]
[1764069317753,0.51425307,87524.0,87521.0,0.0001714]
[1764069318051,0.5,87523.0,87521.0,0.0001714]
[1764069318239,0.9,87523.0,87521.0,0.0001714]
[1764069318641,0.11425633,87522.0,87521.0,0.0001714]
[1764069318946,0.52425633,87522.0,87521.0,0.0001714]
[1764069319746,0.52625633,87522.0,87521.0,0.0001714]
[1764069321453,0.52625633,87522.0,87516.0,0.01458]
[1764069321951,0.52625633,87522.0,87516.0,0.04031]
[1764069322552,0.52525633,87522.0,87516.0,0.04031]
[1764069322948,0.5,87519.0,87516.0,0.04031]
[1764069323139,0.91,87519.0,87516.0,0.04031]
[1764069323554,0.0114302,87517.0,87516.0,0.04031]
[1764069323749,0.0114306,87514.0,87513.0,0.01458]
[1764069323949,0.4114306,87514.0,87513.0,0.04031]
[1764069324154,0.52569346,87514.0,87513.0,0.06622]
[1764069325750,0.51426286,87514.0,87513.0,0.06622]
[1764069326052,0.002,87514.0,87513.0,0.06622]
[1764069326454,0.0116002,87528.0,87525.0,0.05164]
[1764069326640,0.45,87526.0,87525.0,0.05164]
[1764069327044,0.56426808,87526.0,87525.0,0.05164]
[1764069327949,1.06426808,87526.0,87525.0,0.05164]
[1764069328448,1.06526808,87526.0,87525.0,0.05164]
[1764069329056,1.06426808,87526.0,87525.0,0.05164]
[1764069329244,1.06526808,87526.0,87525.0,0.05164]
[1764069329954,1.06426808,87526.0,87525.0,0.05164]
[1764069330658,0.61426808,87526.0,87525.0,0.05164]
[1764069330853,0.96426808,87526.0,87525.0,0.05164]
[1764069331561,0.96526808,87526.0,87525.0,0.05164]
[1764069332951,0.96426808,87526.0,87525.0,0.05164]